[Event "8th Brazilian Open SESC Caioba 2024"]
[Site "Caioba"]
[Date "2024.06.26"]
[Round "5.14"]
[White "Silva, Caio Henrique Angeli"]
[Black "Matsuura, Everaldo"]
[Result "1/2-1/2"]
[ECO "B07"]
[WhiteElo "2094"]
[BlackElo "2380"]
[Annotator "RC"]
[PlyCount "76"]
[EventDate "2024.06.15"]
[EventCountry "BRA"]
[SourceTitle "playchess.com"]
[Source "ChessBase"]
[SourceQuality "1"]
[TimeControl "5400+30"]

1. Nf3 {[%emt 0:02:02]} g6 {[%emt 0:08:23]} 2. d4 {[%emt 0:00:45]} Nf6 {[%emt 0:00:21]} 3. g3 {[%emt 0:01:54]} Bg7 {[%emt 0:00:42]} 4. Bg2 {[%emt 0:00:12]} O-O {[%emt 0:01:00]} 5. O-O {[%emt 0:00:26]} d6 {[%emt 0:01:03]} 6. Nc3 {[%emt 0:02:58]} Nbd7 {[%emt 0:02:50]} 7. e4 {[%emt 0:01:25]} e5 {[%emt 0:00:24]} 8. h3 {[%emt 0:01:06]} c6 {[%emt 0:01:01]} 9. dxe5 {[%emt 0:02:17]} dxe5 {[%emt 0:00:42]} 10. Be3 {[%emt 0:02:15]} Qe7 {[%emt 0:03:25]} 11. Nd2 {[%emt 0:10:53]} Nc5 {[%emt 0:04:03]} 12. Nc4 {[%emt 0:08:12]} b6 {[%emt 0:07:23]} 13. Qd6 {[%emt 0:11:20]} Qxd6 {[%emt 0:02:56]} 14. Nxd6 {[%emt 0:00:07]} Ba6 {[%emt 0:01:17]} 15. Rfd1 {[%emt 0:00:21]} Ne6 {[%emt 0:06:47]} 16. Bf1 {[%emt 0:03:05]} Bxf1 {[%emt 0:01:15]} 17. Kxf1 {[%emt 0:00:08]} Nd4 {[%emt 0:14:06]} 18. Bxd4 {[%emt 0:08:04]} exd4 {[%emt 0:00:13]} 19. Rxd4 {[%emt 0:01:00]} Nd5 {[%emt 0:01:09]} 20. Rd3 {[%emt 0:05:45]} Nb4 {[%emt 0:02:56]} 21. Rd2 {[%emt 0:00:42]} Rfd8 {[%emt 0:00:26]} 22. Rad1 {[%emt 0:01:07]} Bxc3 {[%emt 0:03:13]} 23. bxc3 {[%emt 0:00:11]} Nxa2 {[%emt 0:00:09]} 24. Rd3 {[%emt 0:01:28]} b5 {[%emt 0:03:28]} 25. e5 {[%emt 0:02:05]} b4 {[%emt 0:00:15]} 26. cxb4 {[%emt 0:00:26]} Nxb4 {[%emt 0:00:04]} 27. Rc3 {[%emt 0:02:19]} a5 {[%emt 0:03:50]} 28. Ra1 {[%emt 0:07:41]} f6 {[%emt 0:07:38]} 29. Nb7 {[%emt 0:01:15]} Rd2 {[%emt 0:05:07]} 30. Rxa5 {[%emt 0:06:10]} Rb8 {[%emt 0:01:01]} 31. Nd6 {[%emt 0:03:14]} Nxc2 {[%emt 0:08:49]} 32. Ne4 {[%emt 0:03:22]} Rd1+ {[%emt 0:02:07]} 33. Kg2 {[%emt 0:00:23]} Ne1+ {[%emt 0:00:26]} 34. Kh2 {[%emt 0:01:24]} fxe5 {[%emt 0:00:57]} 35. Rxc6 {[%emt 0:03:03]} Nf3+ {[%emt 0:04:02]} 36. Kg2 {[%emt 0:00:05]} Ne1+ {[%emt 0:00:28]} 37. Kh2 {[%emt 0:00:57]} Nf3+ {[%emt 0:00:27]} 38. Kg2 {[%emt 0:00:06]} Ne1+ {[%emt 0:00:26]} 1/2-1/2

[Event "8th Brazilian Open SESC Caioba 2024"]
[Site "Caioba"]
[Date "2024.06.29"]
[Round "8.1"]
[White "Filgueiras, Nathan Felipe"]
[Black "Mekhitarian, Krikor Sevag"]
[Result "0-1"]
[ECO "B76"]
[WhiteElo "2294"]
[BlackElo "2554"]
[Annotator "TA"]
[PlyCount "126"]
[EventDate "2024.06.15"]
[EventCountry "BRA"]
[SourceTitle "playchess.com"]
[Source "ChessBase"]
[SourceQuality "1"]
[TimeControl "5400+30"]

{[%evp 24,126,70,74,90,91,87,25,48,21,17,18,20,22,18,11,19,0,0,0,3,-34,-33,-33,-30,-14,-22,-63,-48,-70,-66,-68,-29,-82,-77,-107,-107,-112,-75,-63,-80,-63,-21,-41,-8,-8,-8,-8,-8,-8,0,0,0,-14,-23,-116,-124,-175,-8,-10,0,0,0,-2,0,0,8,-189,8,-239,-205,-223,-204,-339,-353,-482,-476,-459,-413,-453,-453,-561,-558,-677,-688,-941,-973,-1239,-1605,-1605,-871,-1231,-547,-1447,-1236,-1878,-1109,-29974,-29974,-29978,-29979,-29980,-29980,-29975,-29977]} 1. e4 {[%emt 0:00:35]} c5 {[%emt 0:00:04]} 2. Nc3 {[%emt 0:00:24]} Nc6 {[%emt 0:00:33]} 3. Nge2 {[%emt 0:00:43]} g6 {[%emt 0:00:12]} 4. d4 {[%emt 0:00:05]} cxd4 {[%emt 0:00:05]} 5. Nxd4 {[%emt 0:00:04]} Bg7 {[%emt 0:00:02]} 6. Be3 {[%emt 0:00:29]} Nf6 {[%emt 0:00:04]} 7. Nb3 {[%emt 0:01:06]} O-O {[%emt 0:03:28]} 8. f3 {[%emt 0:01:56] 8.Qd2 is the modern continuation.} d6 {[%emt 0:11:53]} 9. Qd2 {[%emt 0:00:31]} a5 {[%emt 0:03:55] B76: Sicilian Dragon: Yugoslav Attack, 9 g4 and 9 0-0-0.} 10. a4 {[%emt 0:03:45]} Be6 {[%emt 0:02:21]} 11. O-O-O {[%emt 0:01:49]} Rc8 {[%emt 0:08:37]} 12. Kb1 {[%emt 0:08:29]} Nb4 {[%emt 0:01:53]} 13. Nd4 {[%emt 0:06:04]} Bc4 {[%emt 0:02:59]} 14. h4 {[%emt 0:04:37]} Bxf1 {[%emt 0:01:11]} 15. Rdxf1 $146 {[%emt 0:00:07]} ({White should try} 15. Rhxf1 $16 {g4 would now be deadly.} h5 16. Ndb5) ({Predecessor:} 15. Rhxf1 Nd7 16. Bh6 Ne5 17. Bxg7 Kxg7 18. Ndb5 Nc4 19. Qd4+ e5 20. Qf2 f5 21. exf5 Rxf5 {1-0 Teschner,R-Richter,K Berlin-ch playoff 1948 (2)}) 15... e5 {[%emt 0:38:07]} 16. Ndb5 {[%emt 0:09:37]} (16. Nb3 $5) 16... d5 {[%emt 0:00:13]} 17. exd5 {[%emt 0:08:35]} Nfxd5 {[%emt 0:00:14]} 18. Rd1 {[%emt 0:06:09]} Nxc3+ {[%emt 0:04:28]} 19. Nxc3 {[%emt 0:00:47]} (19. bxc3 {simplifies} Qxd2 20. Rxd2 Na6 21. Kb2) 19... Qc7 {[%emt 0:08:12]} 20. Qd7 {[%emt 0:07:11]} (20. h5 {keeps more tension.} e4 21. Nxe4 Rfd8 22. Qe2) 20... e4 {[%emt 0:07:30]} 21. Qxc7 {[%emt 0:02:56]} (21. Nxe4 $2 {leads to mate.} Qxc2+ 22. Ka1 Bxb2#) 21... Rxc7 {[%emt 0:00:02]} 22. Bd4 {[%emt 0:04:46]} exf3 {[%emt 0:01:27]} 23. gxf3 {[%emt 0:00:08]} h5 {[%emt 0:02:32]} 24. Bxg7 {[%emt 0:04:29]} Kxg7 {[%emt 0:00:01]} 25. Rhe1 {[%emt 0:00:09]} Rfc8 {[%emt 0:01:11]} 26. Rd2 {[%emt 0:05:00]} Rc4 {[%emt 0:00:19]} 27. Re4 {[%emt 0:00:21]} R8c5 {[%emt 0:01:22]} 28. Rde2 {[%emt 0:10:17]} (28. Rxc4 $11 Rxc4 29. Ne4) 28... Rxe4 {[%emt 0:00:25]} 29. Nxe4 {[%emt 0:01:22]} Rf5 {[%emt 0:00:29]} 30. Nd2 {[%emt 0:01:53]} Rf4 {[%emt 0:00:56]} 31. Re4 {[%emt 0:01:22]} Rxe4 {[%emt 0:00:06]} 32. Nxe4 {[%emt 0:00:20]} f6 {[%emt 0:00:37]} 33. Kc1 $1 {[%emt 0:00:53]} Nc6 {[%emt 0:00:46]} 34. Kd1 {[%emt 0:04:48]} Nd4 {[%emt 0:00:25]} 35. f4 {[%emt 0:00:29]} Nf5 {[%emt 0:00:27]} 36. Nc5 {[%emt 0:00:29]} Nd6 {[%emt 0:00:32]} ({Don't play} 36... Nxh4 37. Nxb7 Ng2 38. Ke2) 37. Ke2 {[%emt 0:01:47]} Kf7 {[%emt 0:00:07]} 38. c3 {[%emt 0:00:26]} b6 {[%emt 0:01:00]} 39. Nd3 {[%emt 0:01:22]} (39. Na6 $1 $11) 39... Ke6 $17 {[%emt 0:00:29]} (39... Nf5 40. c4 Nxh4 41. c5 bxc5 42. Nxc5 $15) 40. Ne1 {[%emt 0:01:41] [#]} (40. Nc1 $17) 40... Kd5 $2 {[%emt 0:00:36]} (40... Ne4 $1 $19 {White must now prevent ...Nc5.} 41. Nc2 Nc5 42. Nd4+ Kd5) 41. Kd3 $11 {[%emt 0:00:26]} Nf5 {[%emt 0:00:15]} 42. Nf3 {[%emt 0:00:13]} Kc5 {[%emt 0:00:02]} 43. b3 {[%emt 0:00:39]} Ne7 {[%emt 0:00:54]} 44. Nd2 {[%emt 0:00:36]} Nd5 {[%emt 0:00:19]} 45. Ne4+ {[%emt 0:01:53]} Kc6 {[%emt 0:00:00]} 46. Kc4 $2 {[%emt 0:00:23]} (46. f5 $1 $11 {and White has nothing to worry.}) 46... Nxf4 $19 {[%emt 0:01:00]} ({Not} 46... f5 47. Ng5 $15) 47. Nxf6 {[%emt 0:00:22]} Ng2 {[%emt 0:00:01]} 48. b4 {[%emt 0:01:04]} (48. Kd3 $142) 48... Nxh4 $19 {[%emt 0:00:04]} 49. Nd5 {[%emt 0:00:39]} Nf5 {[%emt 0:01:11]} 50. Nf4 {[%emt 0:00:27]} Ne7 {[%emt 0:00:17]} 51. Kd4 {[%emt 0:00:37]} Kd6 {[%emt 0:00:17]} 52. bxa5 {[%emt 0:00:23]} bxa5 {[%emt 0:00:11]} 53. c4 {[%emt 0:00:06]} h4 {[%emt 0:01:06]} 54. c5+ {[%emt 0:00:55]} Kc6 {[%emt 0:00:12]} 55. Nd3 {[%emt 0:00:21]} h3 {[%emt 0:01:18]} 56. Ne5+ {[%emt 0:00:16]} Kc7 {[%emt 0:00:05]} 57. Ng4 {[%emt 0:00:03]} Nf5+ {[%emt 0:00:14]} (57... Kb7 $142 58. Kc4 g5) 58. Ke5 {[%emt 0:00:24]} Kc6 {[%emt 0:01:27]} 59. Kf6 {[%emt 0:00:44]} Ne3 {[%emt 0:00:36]} 60. Nf2 {[%emt 0:00:47]} h2 {[%emt 0:01:11]} 61. Kxg6 {[%emt 0:00:10]} Kxc5 {[%emt 0:00:00]} 62. Kh5 {[%emt 0:00:09]} Nd1 {[%emt 0:00:00]} 63. Nh1 {[%emt 0:00:11]} Kb4 {[%emt 0:00:00]} 0-1

[Event "8th Brazilian Open SESC Caioba 2024"]
[Site "Caioba"]
[Date "2024.06.29"]
[Round "8.3"]
[White "Do Valle Cardoso, Lucas"]
[Black "Barbosa, Evandro Amorim"]
[Result "1/2-1/2"]
[ECO "B54"]
[WhiteElo "2356"]
[BlackElo "2491"]
[Annotator "TA"]
[PlyCount "93"]
[EventDate "2024.06.15"]
[EventCountry "BRA"]
[SourceTitle "playchess.com"]
[Source "ChessBase"]
[SourceQuality "1"]
[TimeControl "5400+30"]

{[%evp 13,93,32,39,8,28,39,31,34,34,33,30,24,27,33,18,42,136,129,133,122,125,136,133,48,43,13,15,27,96,0,0,-488,-490,-474,-481,-484,-489,-469,-432,-454,-477,-463,-471,-449,-456,-498,-434,-421,-267,-271,-272,-267,-274,-246,-257,-296,-269,-271,-255,-277,-264,-299,-212,-412,-412,-400,-398,-1127,-1118,-2848,0,0,0,0,0,0,0,0,0,0,0,0]} 1. e4 {[%emt 0:00:13]} c5 {[%emt 0:00:08]} 2. Nf3 {[%emt 0:00:14]} e6 {[%emt 0:00:24]} 3. d4 {[%emt 0:00:13]} cxd4 {[%emt 0:00:11]} 4. Nxd4 {[%emt 0:00:06]} Nc6 {[%emt 0:00:07]} 5. Nc3 {[%emt 0:00:05]} d6 {[%emt 0:00:07]} 6. g4 {[%emt 0:05:28]} a6 {[%emt 0:02:49]} 7. Be3 {[%emt 0:03:00]} Nge7 {[%emt 0:03:26]} 8. f4 {[%emt 0:07:27]} b5 {[%emt 0:01:49]} 9. Qf3 {[%emt 0:03:09]} Nxd4 {[%emt 0:04:00]} 10. Bxd4 {[%emt 0:00:12] White is slightly better.} Nc6 {[%emt 0:00:12]} 11. Be3 {[%emt 0:01:28]} Bb7 {[%emt 0:00:44]} 12. O-O-O {[%emt 0:02:22]} Rc8 {[%emt 0:04:34]} 13. Kb1 {[%emt 0:04:13]} Be7 {[%emt 0:12:53]} 14. g5 {[%emt 0:01:01]} Nb4 {[%emt 0:14:25]} ({Black should try} 14... O-O $14) 15. a3 $16 {[%emt 0:12:27]} Nc6 {[%emt 0:01:34]} 16. Rg1 {[%emt 0:08:14]} b4 {[%emt 0:02:33]} 17. axb4 {[%emt 0:00:03] White has more active pieces.} Nxb4 {[%emt 0:00:15]} 18. f5 {[%emt 0:07:17]} (18. Qf2 $16) 18... Qa5 $14 {[%emt 0:05:48][%cal Oc8c3] White must now prevent ...Rxc3!} 19. Bd3 {[%emt 0:10:46]} (19. f6 $2 Rxc3 20. Bd3 Qa2+ 21. Kc1 Qa1+ 22. Kd2 Qxb2 $19) 19... Rxc3 $1 {[%emt 0:02:31]} 20. bxc3 {[%emt 0:00:06]} Na2 {[%emt 0:00:46]} (20... d5 $11 21. g6 (21. cxb4 Qxb4+ 22. Kc1 dxe4 $11) 21... hxg6 (21... Qa2+ 22. Kc1 $16) 22. fxe6 (22. cxb4 $2 Qxb4+ 23. Kc1 Qa3+ 24. Kd2 dxe4 $17) 22... O-O (22... Qa2+ 23. Kc1 $17)) 21. Bd2 {[%emt 0:00:21]} (21. Bd4 $1 $16 {Hoping for f6.} e5 22. Bc4 exd4 23. Bxa2) 21... d5 $40 {[%emt 0:25:06][%mdl 128] ...0-0 is the strong threat. White needs to defend precisely.} 22. c4 $2 {[%emt 0:02:48][%mdl 8192]} (22. g6 $11 Qb6+ 23. Ka1) 22... Nb4 $19 {[%emt 0:02:44]} 23. Bc3 {[%emt 0:00:49]} Qa2+ {[%emt 0:00:25]} 24. Kc1 {[%emt 0:00:05] Threatens to win with Qg3.} dxc4 {[%emt 0:00:58]} 25. Qf4 {[%emt 0:07:21] Qb8+ would now be deadly.} Nxd3+ {[%emt 0:03:39]} 26. Rxd3 {[%emt 0:00:20]} cxd3 {[%emt 0:00:06][%csl Gd3][%cal Ra2c2]} 27. Qb8+ {[%emt 0:01:09]} Bd8 {[%emt 0:00:09]} 28. cxd3 {[%emt 0:03:17]} Bc6 {[%emt 0:02:55]} 29. Bxg7 {[%emt 0:00:33]} Rg8 {[%emt 0:01:07]} 30. Bf6 {[%emt 0:00:03][%csl Gf6][%cal Rb8d8]} Qa3+ {[%emt 0:00:26]} 31. Kd2 {[%emt 0:00:14][%csl Gf6][%cal Rb8d8]} Qa5+ {[%emt 0:00:31]} 32. Ke2 {[%emt 0:00:40]} Qc7 {[%emt 0:00:46]} (32... exf5 33. Rc1 Kd7 34. Rc4 Bxf6 (34... fxe4 35. Rd4+ Bd5 36. dxe4 $11) 35. Qxg8 $17) 33. Qxc7 {[%emt 0:02:02]} Bxc7 {[%emt 0:00:05]} 34. fxe6 {[%emt 0:00:31]} fxe6 {[%emt 0:00:08][%cal Oa6a5]} ({Stronger than} 34... Bxh2 35. Rc1 fxe6 (35... Bb7 $2 36. Rh1 $18) 36. Rxc6 $14) 35. h4 {[%emt 0:00:05]} Kd7 {[%emt 0:01:15]} 36. h5 {[%emt 0:00:22]} Bd8 {[%emt 0:03:06]} 37. e5 {[%emt 0:00:45]} Bb6 {[%emt 0:00:22]} 38. Rg4 {[%emt 0:04:04]} (38. Rb1 Bb5 39. Rf1) 38... a5 {[%emt 0:00:16]} 39. g6 {[%emt 0:00:08] [#]} h6 {[%emt 0:00:22]} 40. Bg5 $2 {[%emt 0:00:56]} (40. Bh4) 40... hxg5 {[%emt 0:04:50]} 41. Rxg5 {[%emt 0:00:09] [#]} Bd4 $2 {[%emt 0:00:52]} ({Weaker is} 41... Bd8 42. Rg4 Bc7 43. d4 $11) (41... a4 $1 $19 {[%cal Ra4a3] ( -> ...a3)} 42. d4 a3 (42... Bxd4 $2 43. Kd3 $19)) 42. h6 $1 $11 {[%emt 0:02:07][%cal Bh5h6,Bh6h7][%mdl 32] The position is equal.} Bxe5 {[%emt 0:00:40]} 43. h7 $1 {[%emt 0:00:50]} Rxg6 {[%emt 0:00:54]} 44. Rxg6 {[%emt 0:00:02]} a4 {[%emt 0:00:31]} 45. Rg5 {[%emt 0:05:18]} Bf6 {[%emt 0:00:37]} 46. Rg6 {[%emt 0:00:04]} Be5 {[%emt 0:00:12]} 47. Rg5 {[%emt 0:00:09] White happily takes the draw.   Weighted Error Value: White=0.57/Black=0.33.  Loses game:     	White=1     	---        Mistake:       	White=4     	Black=2      Inaccurate:     	White=2     	Black=1      OK:         	White=13    	Black=16     Best:        	White=3     	Black=5      Strong:       	White=1     	Black=1} 1/2-1/2

[Event "8th Brazilian Open SESC Caioba 2024"]
[Site "Caioba"]
[Date "2024.06.29"]
[Round "8.4"]
[White "Di Berardino, Diego Rafael"]
[Black "Hoffman, Alejandro"]
[Result "1/2-1/2"]
[ECO "E91"]
[WhiteElo "2473"]
[BlackElo "2355"]
[Annotator "TA"]
[PlyCount "43"]
[EventDate "2024.06.15"]
[EventCountry "BRA"]
[SourceTitle "playchess.com"]
[Source "ChessBase"]
[SourceQuality "1"]
[TimeControl "5400+30"]

{[%evp 13,43,42,34,47,39,27,40,37,33,41,38,43,53,19,8,1,7,-14,-22,-18,-11,-13,-14,-8,-14,-34,-27,-4,-3,-45,-44,-87]} 1. d4 {[%emt 0:00:44]} Nf6 {[%emt 0:00:18]} 2. c4 {[%emt 0:00:10]} g6 {[%emt 0:00:30]} 3. Nc3 {[%emt 0:00:18]} Bg7 {[%emt 0:00:13]} 4. e4 {[%emt 0:00:25]} d6 {[%emt 0:00:09]} 5. Be2 {[%emt 0:01:05]} O-O {[%emt 0:00:12]} 6. Nf3 {[%emt 0:02:17]} c5 {[%emt 0:00:26]} 7. d5 {[%emt 0:00:58]} e6 {[%emt 0:00:36]} 8. Be3 {[%emt 0:01:25]} exd5 {[%emt 0:02:44]} 9. cxd5 {[%emt 0:00:09]} Re8 {[%emt 0:06:17]} 10. Nd2 {[%emt 0:00:17] White is slightly better.} Na6 {[%emt 0:00:28]} 11. O-O {[%emt 0:01:08]} Nc7 {[%emt 0:00:27][%cal Ob7b5]} 12. a4 {[%emt 0:00:45]} b6 {[%emt 0:08:41]} 13. Qc2 {[%emt 0:30:58]} Ba6 {[%emt 0:12:39]} 14. Bxa6 {[%emt 0:20:04]} Nxa6 {[%emt 0:00:08]} 15. f3 {[%emt 0:05:42]} Nb4 {[%emt 0:04:03]} 16. Qb3 {[%emt 0:00:03]} Nd7 {[%emt 0:03:18]} 17. Nc4 {[%emt 0:08:54]} Ne5 {[%emt 0:01:01]} 18. Nxe5 {[%emt 0:00:03]} Bxe5 {[%emt 0:00:09]} 19. Rad1 {[%emt 0:00:37]} Qe7 {[%emt 0:57:41]} 20. Nb1 {[%emt 0:24:28]} a6 {[%emt 0:00:30]} (20... Qh4 $5 21. f4 $8 Bg7 $17) 21. Nd2 b5 22. Nb1 {[%emt 0:01:00] Weighted Error Value: White=0.07 (flawless) /Black=0.01 (flawless) .  Inaccurate:     	White=3     	---        OK:         	White=5     	Black=8      Best:        	---       	Black=1} 1/2-1/2

[Event "8th Brazilian Open SESC Caioba 2024"]
[Site "Caioba"]
[Date "2024.06.29"]
[Round "8.5"]
[White "Santiago, Yago De Moura"]
[Black "Umetsubo, Cesar Hidemitsu"]
[Result "1-0"]
[ECO "E05"]
[WhiteElo "2462"]
[BlackElo "2362"]
[Annotator "TA"]
[PlyCount "82"]
[EventDate "2024.06.15"]
[EventCountry "BRA"]
[SourceTitle "playchess.com"]
[Source "ChessBase"]
[SourceQuality "1"]
[TimeControl "5400+30"]

{[%evp 12,82,-2,-14,23,0,0,0,0,0,0,0,0,0,0,9,8,16,7,0,12,6,11,11,61,40,58,69,77,76,137,145,194,199,208,204,184,181,193,135,162,164,176,146,184,157,182,184,169,163,175,172,177,16,16,18,16,16,16,16,16,8,8,8,8,8,8,8,8,8,100,100,100]} 1. d4 {[%emt 0:00:05]} d5 {[%emt 0:00:51]} 2. c4 {[%emt 0:00:05]} e6 {[%emt 0:00:04]} 3. Nf3 {[%emt 0:00:04]} Nf6 {[%emt 0:00:17]} 4. Nc3 {[%emt 0:00:06]} Be7 {[%emt 0:00:07]} 5. g3 {[%emt 0:00:05]} O-O {[%emt 0:00:11]} 6. Bg2 {[%emt 0:00:03]} dxc4 {[%emt 0:00:14]} 7. O-O {[%emt 0:00:08]} c5 {[%emt 0:07:00]} 8. Bf4 {[%emt 0:00:10]} Nc6 {[%emt 0:01:28]} 9. dxc5 {[%emt 0:00:07]} Qa5 {[%emt 0:14:44] The position is equal.} 10. Bd6 {[%emt 0:00:08]} Bxd6 {[%emt 0:09:50]} 11. cxd6 {[%emt 0:00:08]} Rd8 {[%emt 0:02:15]} 12. Qd2 {[%emt 0:00:06]} e5 {[%emt 0:08:54]} 13. Rad1 {[%emt 0:00:08]} h6 {[%emt 0:04:34] Inhibits Ng5.} 14. h3 {[%emt 0:00:06]} Be6 {[%emt 0:00:52]} 15. g4 {[%emt 0:00:06]} Rd7 {[%emt 0:17:01]} 16. g5 {[%emt 0:00:08]} hxg5 {[%emt 0:01:06]} 17. Nxg5 {[%emt 0:00:07][%cal Bf3g5,Bg5e4,Be4c5][%mdl 32]} Re8 {[%emt 0:01:50]} (17... Rad8 $11) 18. Nce4 $14 {[%emt 0:11:37]} Qxd2 {[%emt 0:03:46]} 19. Rxd2 {[%emt 0:00:35]} Nxe4 {[%emt 0:01:21]} 20. Nxe4 {[%emt 0:00:14]} Nd4 {[%emt 0:05:34]} (20... Na5 $142) 21. f4 $16 {[%emt 0:03:43]} f6 {[%emt 0:02:43]} (21... Bf5 $16) 22. fxe5 $18 {[%emt 0:01:45]} fxe5 {[%emt 0:00:01]} 23. e3 {[%emt 0:02:51]} Nf5 {[%emt 0:02:44]} 24. Nc5 $1 {[%emt 0:01:32][%csl LRb7,LRd7] Nxe6 would now be deadly.} Nxe3 {[%emt 0:00:13]} (24... Rxd6 $2 25. Rxd6 Nxd6 26. Nxe6 $18) 25. Re1 {[%emt 0:02:52]} (25. Rc1 $18 {[%cal Og2b7]} Nxg2 26. Kxg2 (26. Nxd7 Bxd7 27. Rxg2 Re6 $18)) 25... Nxg2 $16 {[%emt 0:00:28]} 26. Kxg2 {[%emt 0:00:33]} Rdd8 {[%emt 0:13:30]} (26... c3 $2 27. bxc3 Bf5 28. Nxd7 Bxd7 29. h4 $18) 27. Nxb7 {[%emt 0:06:21]} (27. Rxe5 $2 Bxh3+ 28. Kxh3 Rxe5 $19) (27. d7 Re7 28. Nxe6 Rxe6 $11) 27... Rd7 {[%emt 0:00:02]} 28. Nc5 {[%emt 0:01:19][%cal Og2g3]} Rdd8 {[%emt 0:00:02]} 29. d7 {[%emt 0:06:19]} (29. Rxe5 $2 Bxh3+ 30. Kxh3 Rxe5 $19) 29... Re7 {[%emt 0:00:05] [#]} 30. Kg3 $1 {[%emt 0:08:59]} (30. Rxe5 Bxd7 (30... Bxh3+ 31. Kxh3 Rxe5 32. Nb7 $14) 31. Re4 Rxe4 32. Nxe4 c3 33. bxc3 Kf7 $17) 30... Bf5 {[%emt 0:00:41]} (30... Bxd7 31. Red1 c3 32. bxc3 $18 (32. Rxd7 Rexd7 33. Nxd7 cxb2 $17)) 31. Rd5 {[%emt 0:09:21]} Kf7 {[%emt 0:00:15]} (31... Bxd7 $2 {is the wrong capture.} 32. Red1 $18 (32. Rdxe5 Rxe5 33. Rxe5 Bc6 $11)) 32. Rdxe5 $2 {[%emt 0:03:28]} ({Don't play} 32. Rexe5 $6 Rxe5 33. Rxe5 Bxd7 $11) ({White should play} 32. h4 $18) 32... Rxe5 $11 {[%emt 0:00:03]} 33. Rxe5 {[%emt 0:00:08]} Bxd7 $18 {[%emt 0:00:16][%mdl 4096] Endgame. KRB-KRN} 34. Rd5 {[%emt 0:00:10]} Ke7 {[%emt 0:00:05]} 35. h4 {[%emt 0:08:42]} Bc8 {[%emt 0:02:56]} 36. Rxd8 {[%emt 0:00:07]} Kxd8 $11 {[%emt 0:00:01] KB-KN} 37. Kf4 {[%emt 0:00:09]} Ke7 {[%emt 0:01:21]} 38. Ke5 {[%emt 0:00:41]} Kf7 {[%emt 0:01:22]} 39. Ne4 {[%emt 0:00:31] Hoping for Nd6+.} Kg6 {[%emt 0:00:25]} 40. Ng3 {[%emt 0:00:14]} Ba6 {[%emt 0:00:45] [#]} (40... Bg4 $11) 41. a4 $1 $16 {[%emt 0:02:09]} Bc8 {[%emt 0:01:03] Blacks defense is rewarded with a draw.   Weighted Error Value: White=0.12 (very precise) /Black=0.12 (very precise) .  Missed win:     	White=1     	---        Mistake:       	White=1     	Black=4      OK:         	White=17    	Black=19     Best:        	White=3     	Black=4      Strong:       	White=2     	---} 1-0

[Event "8th Brazilian Open SESC Caioba 2024"]
[Site "Caioba"]
[Date "2024.06.29"]
[Round "8.7"]
[White "Perdomo, Leandro"]
[Black "Rodrigues, Edgar"]
[Result "0-1"]
[ECO "A40"]
[WhiteElo "2391"]
[BlackElo "2229"]
[Annotator "RC"]
[PlyCount "62"]
[EventDate "2024.06.15"]
[EventCountry "BRA"]
[SourceTitle "playchess.com"]
[Source "ChessBase"]
[SourceQuality "1"]
[TimeControl "5400+30"]

1. d4 {[%emt 0:00:03]} g6 {[%emt 0:01:59]} 2. c4 {[%emt 0:00:15]} Bg7 {[%emt 0:00:08]} 3. Nc3 {[%emt 0:02:54]} c5 {[%emt 0:00:25]} 4. d5 {[%emt 0:00:35]} Bxc3+ {[%emt 0:00:09]} 5. bxc3 {[%emt 0:00:02]} f5 {[%emt 0:00:09]} 6. e4 {[%emt 0:02:38]} fxe4 {[%emt 0:00:09]} 7. f3 {[%emt 0:00:11]} e5 {[%emt 0:02:01]} 8. Nh3 {[%emt 0:37:39]} d6 {[%emt 0:12:58]} 9. Nf2 {[%emt 0:04:35]} Nd7 {[%emt 0:08:31]} 10. Nxe4 {[%emt 0:01:17]} Ndf6 {[%emt 0:00:31]} 11. Ng3 {[%emt 0:22:35]} Qa5 {[%emt 0:03:15]} 12. Qd3 {[%emt 0:09:19]} Bd7 {[%emt 0:00:57]} 13. Bg5 {[%emt 0:00:13]} O-O-O {[%emt 0:07:11]} 14. Ne4 {[%emt 0:06:53]} Bf5 {[%emt 0:00:19]} 15. Be2 {[%emt 0:01:01]} h6 {[%emt 0:00:50]} 16. Bd2 {[%emt 0:01:29]} Ne7 {[%emt 0:08:31]} 17. g4 {[%emt 0:00:02]} Bxe4 {[%emt 0:01:55]} 18. fxe4 {[%emt 0:00:01]} g5 {[%emt 0:00:24]} 19. O-O {[%emt 0:01:47]} Nd7 {[%emt 0:02:32]} 20. h4 {[%emt 0:01:25]} Ng6 {[%emt 0:07:40]} 21. hxg5 {[%emt 0:00:44]} Nf4 {[%emt 0:01:54]} 22. Bxf4 {[%emt 0:04:09]} exf4 {[%emt 0:00:02]} 23. Rxf4 {[%emt 0:00:05]} hxg5 {[%emt 0:01:56]} 24. Rf5 {[%emt 0:00:02]} Rh4 {[%emt 0:03:28]} 25. Rxg5 {[%emt 0:00:45]} Rdh8 {[%emt 0:00:35]} 26. Rh5 {[%emt 0:01:30]} Qd8 {[%emt 0:00:21]} 27. Rxh8 {[%emt 0:01:17]} Qxh8 {[%emt 0:00:16]} 28. Rf1 {[%emt 0:00:03]} Rh1+ {[%emt 0:01:19]} 29. Kf2 {[%emt 0:00:01]} Qh4+ {[%emt 0:01:01]} 30. Ke3 {[%emt 0:00:04]} Rh3+ {[%emt 0:03:12]} 31. Bf3 {[%emt 0:00:17]} Ne5 {[%emt 0:31:22]} 0-1

[Event "8th Brazilian Open SESC Caioba 2024"]
[Site "Caioba"]
[Date "2024.06.29"]
[Round "8.8"]
[White "Cubas, Jose Fernando"]
[Black "Terao, Juliana Sayumi"]
[Result "1-0"]
[ECO "B43"]
[WhiteElo "2417"]
[BlackElo "2198"]
[Annotator "RC"]
[PlyCount "41"]
[EventDate "2024.06.15"]
[EventCountry "BRA"]
[SourceTitle "playchess.com"]
[Source "ChessBase"]
[SourceQuality "1"]
[TimeControl "5400+30"]

1. e4 {[%emt 0:01:07]} c5 {[%emt 0:00:09]} 2. Nf3 {[%emt 0:00:07]} e6 {[%emt 0:00:06]} 3. d4 {[%emt 0:00:04]} cxd4 {[%emt 0:00:06]} 4. Nxd4 {[%emt 0:00:02]} a6 {[%emt 0:00:09]} 5. a3 {[%emt 0:03:54]} Nf6 {[%emt 0:03:14]} 6. Nc3 {[%emt 0:00:48]} Qc7 {[%emt 0:00:38]} 7. f4 {[%emt 0:00:48]} Nc6 {[%emt 0:10:23]} 8. e5 {[%emt 0:03:16]} Nxd4 {[%emt 0:00:46]} 9. Qxd4 {[%emt 0:00:11]} Ng4 {[%emt 0:02:24]} 10. Ne4 {[%emt 0:18:37]} Be7 {[%emt 0:23:19]} 11. Nd6+ {[%emt 0:03:31]} Kf8 {[%emt 0:00:07]} 12. Bd2 {[%emt 0:04:32]} f5 {[%emt 0:07:55]} 13. O-O-O {[%emt 0:01:59]} b6 {[%emt 0:03:45]} 14. h3 {[%emt 0:01:31]} Nh6 {[%emt 0:00:14]} 15. Bc3 {[%emt 0:04:41]} b5 {[%emt 0:04:12]} 16. Be2 {[%emt 0:03:19]} Nf7 {[%emt 0:04:32]} 17. g4 {[%emt 0:00:56]} g6 {[%emt 0:01:58]} 18. gxf5 {[%emt 0:00:54]} gxf5 {[%emt 0:00:12]} 19. Rhg1 {[%emt 0:04:49]} Rg8 {[%emt 0:07:52]} 20. Rxg8+ {[%emt 0:03:09]} Kxg8 {[%emt 0:00:06]} 21. Qg1+ {[%emt 0:42:45]} 1-0